Workbook

Sheet WBuffet
I2: Symbol | J2: Price | K2: Diff
B3: KHC - Kraft Heinz Co. | C3: KHC | E3: 325634818 | G3: 90.81 | I3: KHC | J3: 77 | K3: =G3-J3 -> 13.81 | L3: =K3*100/G3 -> 15.20757626
B4: ≡ | C4: WFC - Wells Fargo | D4: 16.49 | E4: 479704270 | G4: 55.66 | I4: wfc | J4: 56.18 | K4: =J4-G4 -> 0.52 | L4: =K4*100/G4 -> 0.934243622
B5: ≡ | C5: AAPL - Apple Inc. | D5: 11.48 | E5: 129357106 | F5: Add 125.52% | G5: 143.66 | I5: AAPL | J5: 174.25 | K5: =J5-G5 -> 30.59 | L5: 21.29333148
B6: ≡ | C6: KO - Coca Cola Co. | D6: 10.49 | E6: 400000000 | G6: 42.44 | I6: KO | J6: 45.47 | K6: 3.03 | L6: 7.139491046
B7: ≡ | C7: AXP - American Express | D7: 7.41 | E7: 151610700 | G7: 79.11 | I7: AXP | J7: 96.29 | K7: 17.18 | L7: 21.71659714
B8: ≡ | C8: IBM - International Bus. Machines | D8: 6.95 | E8: 64561955 | F8: Reduce 20.52% | G8: 174.14 | I8: IBM | J8: 150.84 | K8: -23.3 | L8: -13.38003905
B9: ≡ | C9: PSX - Phillips 66 | D9: 3.95 | E9: 80689892 | G9: 79.22 | I9: PSX | J9: 94.43 | K9: 15.21 | L9: 19.19969705
B10: ≡ | C10: USB - U.S. Bancorp | D10: 2.71 | E10: 85063167 | G10: 51.5 | I10: USB | J10: 54.85 | K10: 3.35 | L10: 6.504854369
B11: ≡ | C11: CHTR - Charter Communications | D11: 1.91 | E11: 9443491 | G11: 327.32 | I11: CHTR | J11: 348.4 | K11: 21.08 | L11: 6.440180863
B12: ≡ | C12: MCO - Moody's Corp. | D12: 1.71 | E12: 24669778 | G12: 112.04 | I12: MCO | J12: 144.51 | K12: 32.47 | L12: 28.98072117
B13: ≡ | C13: DVA - DaVita HealthCare Partners | D13: 1.62 | E13: 38565570 | G13: 67.97 | I13: DVA | J13: 59.39 | K13: -8.58 | L13: -12.62321612
B14: ≡ | C14: LUV - Southwest Airlines | D14: 1.58 | E14: 47659456 | F14: Add 10.31% | G14: 53.76 | I14: LUV | J14: 55.98 | K14: 2.22 | L14: 4.129464286
B15: ≡ | C15: GS - Goldman Sachs Group | D15: 1.56 | E15: 10959519 | G15: 229.72 | I15: GS | J15: 237.19 | K15: 7.47 | L15: 3.251784781
B16: ≡ | C16: DAL - Delta Air Lines Inc. | D16: 1.56 | E16: 55025995 | F16: Reduce 8.33% | G16: 45.96 | I16: DAL | J16: 48.22 | K16: 2.26 | L16: 4.917319408
B17: ≡ | C17: AAL - American Airlines Group Inc. | D17: 1.29 | E17: 49278854 | F17: Add 8.20% | G17: 42.3 | I17: AAL | J17: 47.49 | K17: 5.19 | L17: 12.26950355
B18: ≡ | C18: UAL - United Continental Holdings | D18: 1.26 | E18: 28951353 | G18: 70.64 | I18: UAL | J18: 60.88 | K18: -9.76 | L18: -13.81653454
B19: ≡ | C19: GM - General Motors | D19: 1.09 | E19: 50000000 | G19: 35.36 | I19: GM | J19: 40.38 | K19: 5.02 | L19: 14.19683258
B20: ≡ | C20: BK - Bank of New York | D20: 0.96 | E20: 33012059 | F20: Add 52.33% | G20: 47.23 | I20: BK | J20: 53.02 | K20: 5.79 | L20: 12.25915732
B21: ≡ | C21: USG - USG Corp. | D21: 0.77 | E21: 39002016 | G21: 31.8 | I21: USG | J21: 32.65 | K21: 0.85 | L21: 2.672955975
B22: ≡ | C22: VRSN - Verisign Inc. | D22: 0.7 | E22: 12952745 | G22: 87.11 | I22: VRSN | J22: 106.39 | K22: 19.28 | L22: 22.13293537
B23: ≡ | C23: V - Visa Inc. | D23: 0.58 | E23: 10562460 | G23: 88.87 | I23: V | J23: 105.24 | K23: 16.37 | L23: 18.42016428
B24: ≡ | C24: MON - Monsanto Co. | D24: 0.56 | E24: 8041784 | G24: 113.2 | I24: MON | J24: 119.82 | K24: 6.62 | L24: 5.848056537
B25: ≡ | C25: SIRI - Sirius XM Holdings Inc. | D25: 0.55 | E25: 172325353 | F25: Add 3.41% | G25: 5.15 | I25: SIRI | J25: 5.52 | K25: 0.37 | L25: 7.184466019
B26: ≡ | C26: LSXMK - Liberty SiriusXM Series C | D26: 0.53 | E26: 22307109 | F26: Add 0.32% | G26: 38.78 | I26: LSXMK | J26: 41.87 | K26: 3.09 | L26: 7.968024755
B27: ≡ | C27: MTB - M&T Bank Corp. | D27: 0.51 | E27: 5382040 | G27: 154.73 | I27: MTB | J27: 161.04 | K27: 6.31 | L27: 4.078071479
B28: ≡ | C28: AXTA - Axalta Coating Systems Ltd. | D28: 0.46 | E28: 23324000 | G28: 32.2 | I28: AXTA | J28: 28.92 | K28: -3.28 | L28: -10.1863354
B29: ≡ | C29: LBTYA - Liberty Global Inc. | D29: 0.45 | E29: 20180897 | G29: 35.87 | I29: LBTYA | J29: 33.91 | K29: -1.96 | L29: -5.464176192
B30: ≡ | C30: COST - Costco Co. | D30: 0.45 | E30: 4333363 | G30: 167.69 | I30: COST | J30: 164.29 | K30: -3.4 | L30: -2.027550838
B31: ≡ | C31: MA - Mastercard Inc. | D31: 0.34 | E31: 4934756 | G31: 112.47 | I31: MA | J31: 141.2 | K31: 28.73 | L31: 25.54458967
B32: ≡ | C32: TMK - Torchmark Corp. | D32: 0.3 | E32: 6353727 | G32: 77.04 | I32: TMK | J32: 80.09 | K32: 3.05 | L32: 3.958982347
B33: ≡ | C33: QSR - Restaurant Brands International | D33: 0.29 | E33: 8438225 | G33: 55.74 | I33: QSR | J33: 63.88 | K33: 8.14 | L33: 14.60351633
B34: ≡ | C34: LSXMA - Liberty Sirius XM Series A | D34: 0.25 | E34: 10247800 | F34: Add 1.88% | G34: 38.92 | I34: LSXMA | J34: 41.9 | K34: 2.98 | L34: 7.656731757
B35: ≡ | C35: WBC - WABCO Holdings Inc. | D35: 0.21 | E35: 2908554 | F35: Reduce 13.65% | G35: 117.42 | I35: WBC | J35: 148 | K35: 30.58 | L35: 26.0432635
B36: ≡ | C36: GE - General Electric | D36: 0.19 | E36: 10585502 | G36: 29.8 | I36: GE | J36: 24.18 | K36: -5.62 | L36: -18.8590604
B37: ≡ | C37: LBTYK - Liberty Global Inc. C | D37: 0.16 | E37: 7346968 | G37: 35.04 | I37: LBTYK | J37: 32.7 | K37: -2.34 | L37: -6.678082192
B38: ≡ | C38: SNY - Sanofi Aventis | D38: 0.11 | E38: 3905875 | G38: 45.25 | I38: SNY | J38: 49.79 | K38: 4.54 | L38: 10.03314917
B39: ≡ | C39: VRSK - Verisk Analytics Inc. | D39: 0.08 | E39: 1563434 | G39: 81.14 | I39: VRSK | J39: 83.19 | K39: 2.05 | L39: 2.526497412
B40: ≡ | C40: WMT - Wal-Mart Stores | D40: 0.06 | E40: 1393513 | G40: 72.08 | I40: WMT | J40: 78.14 | K40: 6.06 | L40: 8.407325194
B41: ≡ | C41: LILA - Liberty LiLAC Group A | D41: 0.04 | E41: 2714854 | G41: 22.24 | I41: LILA | J41: 23.76 | K41: 1.52 | L41: 6.834532374
B42: ≡ | C42: GHC - Graham Holdings Co. | D42: 0.04 | E42: 107575 | G42: 599.54 | I42: GHC | J42: 585.1 | K42: -14.44 | L42: -2.408513193
B43: ≡ | C43: JNJ - Johnson & Johnson | D43: 0.03 | E43: 327100 | G43: 124.55 | I43: JNJ | J43: 130.01 | K43: 5.46 | L43: 4.383781614
B44: ≡ | C44: LILAK - Liberty LiLAC Group C | D44: 0.02 | E44: 1284020 | G44: 23.04 | I44: LILAK | J44: 23.3 | K44: 0.26 | L44: 1.128472222
B45: ≡ | C45: MDLZ - Mondelez International | D45: 0.02 | E45: 578000 | G45: 43.08 | I45: MDLZ | J45: 40.66 | K45: -2.42 | L45: -5.617455896
B46: ≡ | C46: PG - Procter & Gamble | D46: 0.02 | E46: 315400 | G46: 89.85 | I46: PG | J46: 90.98 | K46: 1.13 | L46: 1.257651642
B47: ≡ | C47: UPS - United Parcel Service | D47: 0 | E47: 59400 | G47: 107.31 | I47: UPS | J47: 120.09 | K47: 12.78 | L47: 11.9094213
B48: ≡ | C48: VZ - Verizon Communications | D48: 0 | E48: 928 | G48: 48.49 | I48: VZ | J48: 60 | K48: 11.51 | L48: 23.73685296

Sheet Analysis
F1: =TEXT(F2,"dddd") -> Friday | H1: =TEXT(H2,"dddd") -> Thursday | J1: =TEXT(J2,"dddd") -> Wednesday | L1: =TEXT(L2,"dddd") -> Tuesday | N1: 0 consective loss, 1 is consective gain, 2 is none
F2: 2017-09-29 | H2: =IF((TEXT(F2,"dddd")="Monday"),F2-3,F2-1) -> 2017-09-28 | J2: =H2-1 -> 2017-09-27 | L2: =J2-1 -> 2017-09-26
A3: Symbol | B3: units | C3: PurPrice | D3: Pcost | E3: MV | F3: DayPrice | G3: DayGain | H3: Day-1Price | I3: Day-1Gain | J3: Day-2Price | K3: Day-2Gain | L3: Day-3Price | M3: Day-3Gain | N3: LorG >3 | O3: D-D-3 change | P3: D-D-3 change Value | Q3: LG | R3: %LG
A4: AAPL | B4: 75 | C4: 157.93 | D4: 11802.71 | E4: 11559 | F4: 154.12 | G4: 0.84 | H4: 153.28 | I4: -0.95 | J4: 154.23 | K4: 1.09 | L4: 153.14 | M4: 2.59 | N4: =IF(AND(G4 < 0, I4 < 0, K4 < 0),0, IF(AND(G4 > 0, I4 >0, K4 > 0),1,2)) -> 2 | O4: =F4-J4 -> -0.11 | P4: =O4*B4 -> -8.25 | Q4: =Table1[[#This Row],[MV]]-Table1[[#This Row],[Pcost]] -> -243.71 | R4: =Table1[[#This Row],[LG]]*100/Table1[[#This Row],[Pcost]] -> -2.064864764
A5: ACH | B5: 200 | C5: 7.49 | D5: 1511.5 | E5: 4434 | F5: 22.17 | G5: 1.1 | H5: 21.07 | I5: -0.17 | J5: 21.24 | K5: 0.76 | L5: 20.48 | M5: -0.58 | N5: 2 | O5: 0.93 | P5: 186 | Q5: =Table1[[#This Row],[MV]]-Table1[[#This Row],[Pcost]] -> 2922.5 | R5: =Table1[[#This Row],[LG]]*100/Table1[[#This Row],[Pcost]] -> 193.3509759
A6: AMAT | B6: 75 | C6: 15.44 | D6: 1165 | E6: 3906.75 | F6: 52.09 | G6: 1.47 | H6: 50.62 | I6: 1.78 | J6: 48.84 | K6: 2.92 | L6: 45.92 | M6: -0.41 | N6: 1 | O6: 3.25 | P6: 243.75 | Q6: =Table1[[#This Row],[MV]]-Table1[[#This Row],[Pcost]] -> 2741.75 | R6: =Table1[[#This Row],[LG]]*100/Table1[[#This Row],[Pcost]] -> 235.3433476
A7: amg | B7: 849.287 | C7: 14.49 | D7: 12110.86 | E7: 16306.31 | F7: 19.2 | G7: 0 | H7: ST | N7: 2 | O7: 19.2 | P7: 16306.3104 | Q7: =Table1[[#This Row],[MV]]-Table1[[#This Row],[Pcost]] -> 4195.45 | R7: =Table1[[#This Row],[LG]]*100/Table1[[#This Row],[Pcost]] -> 34.64204854
A8: amx | B8: 1330.946 | C8: 15.29 | D8: 19950.41 | E8: 27284.39 | F8: 20.5 | G8: 0 | H8: ST | N8: 2 | O8: 20.5 | P8: 27284.393 | Q8: =Table1[[#This Row],[MV]]-Table1[[#This Row],[Pcost]] -> 7333.98 | R8: =Table1[[#This Row],[LG]]*100/Table1[[#This Row],[Pcost]] -> 36.76104902
A9: BABA | B9: 25 | C9: 178.67 | D9: 4471.74 | E9: 4317.75 | F9: 172.71 | G9: 2.47 | H9: 170.24 | I9: -0.75 | J9: 170.99 | K9: 3.97 | L9: 167.02 | M9: -2.57 | N9: 2 | O9: 1.72 | P9: 43 | Q9: =Table1[[#This Row],[MV]]-Table1[[#This Row],[Pcost]] -> -153.99 | R9: =Table1[[#This Row],[LG]]*100/Table1[[#This Row],[Pcost]] -> -3.443625971
A10: BAC | B10: 600 | C10: 15.36 | D10: 9925.45 | E10: 15204 | F10: 25.34 | G10: -0.11 | H10: 25.45 | I10: 0.04 | J10: 25.41 | K10: 0.6 | L10: 24.81 | M10: 0.05 | N10: 2 | O10: -0.07 | P10: -42 | Q10: =Table1[[#This Row],[MV]]-Table1[[#This Row],[Pcost]] -> 5278.55 | R10: =Table1[[#This Row],[LG]]*100/Table1[[#This Row],[Pcost]] -> 53.1819716
A11: BK | B11: 50 | C11: 46.62 | D11: 2336.1 | E11: 2651 | F11: 53.02 | G11: 0.01 | H11: 53.01 | I11: 0.25 | J11: 52.76 | K11: 0.64 | L11: 52.12 | M11: -0.08 | N11: 1 | O11: 0.26 | P11: 13 | Q11: =Table1[[#This Row],[MV]]-Table1[[#This Row],[Pcost]] -> 314.9 | R11: =Table1[[#This Row],[LG]]*100/Table1[[#This Row],[Pcost]] -> 13.47973118
A12: BOIL | B12: 1700 | C12: 11.44 | D12: 19143.48 | E12: 14960 | F12: 8.8 | G12: -0.05 | H12: 8.85 | I12: -0.23 | J12: 9.08 | K12: 0.39 | L12: 8.69 | M12: 0.01 | N12: 2 | O12: -0.28 | P12: -476 | Q12: =Table1[[#This Row],[MV]]-Table1[[#This Row],[Pcost]] -> -4183.48 | R12: =Table1[[#This Row],[LG]]*100/Table1[[#This Row],[Pcost]] -> -21.85328895
A13: BP | B13: 200 | C13: 31.74 | D13: 6388.59 | E13: 7686 | F13: 38.43 | G13: 0.01 | H13: 38.42 | I13: 0.4 | J13: 38.02 | K13: 0.15 | L13: 37.87 | M13: -0.37 | N13: 1 | O13: 0.41 | P13: 82 | Q13: =Table1[[#This Row],[MV]]-Table1[[#This Row],[Pcost]] -> 1297.41 | R13: =Table1[[#This Row],[LG]]*100/Table1[[#This Row],[Pcost]] -> 20.30823703
A14: BRF | B14: 250 | C14: 15.24 | D14: 3922.44 | E14: 6185 | F14: 24.74 | G14: 0.64 | H14: 24.1 | I14: 0.01 | J14: 24.09 | K14: -0.52 | L14: 24.61 | M14: -0.1 | N14: 2 | O14: 0.65 | P14: 162.5 | Q14: =Table1[[#This Row],[MV]]-Table1[[#This Row],[Pcost]] -> 2262.56 | R14: =Table1[[#This Row],[LG]]*100/Table1[[#This Row],[Pcost]] -> 57.68246296
A15: BRK-B | B15: 75 | C15: 149.72 | D15: 11250.29 | E15: 13749 | F15: 183.32 | G15: 0.11 | H15: 183.21 | I15: -0.06 | J15: 183.27 | K15: 1.41 | L15: 181.86 | M15: -0.66 | N15: 2 | O15: 0.05 | P15: 3.75 | Q15: =Table1[[#This Row],[MV]]-Table1[[#This Row],[Pcost]] -> 2498.71 | R15: =Table1[[#This Row],[LG]]*100/Table1[[#This Row],[Pcost]] -> 22.21018303
A16: CANRT | B16: 10000 | C16: 1 | D16: 10000 | E16: 10000 | F16: 1 | G16: 0 | H16: ST | N16: 2 | O16: 1 | P16: 10000 | Q16: =Table1[[#This Row],[MV]]-Table1[[#This Row],[Pcost]] -> 0 | R16: =Table1[[#This Row],[LG]]*100/Table1[[#This Row],[Pcost]] -> 0
A17: CASH | B17: 1404881.131 | C17: 1 | D17: 1404881.13 | E17: 1404881.13 | F17: 1 | G17: 0 | H17: ST | N17: 2 | O17: 1 | P17: 1404881.131 | Q17: =Table1[[#This Row],[MV]]-Table1[[#This Row],[Pcost]] -> 0 | R17: =Table1[[#This Row],[LG]]*100/Table1[[#This Row],[Pcost]] -> 0
A18: ccash | B18: 6400 | C18: 0.96 | D18: 6144 | E18: 6144 | F18: 0.96 | G18: 0 | H18: ST | N18: 2 | O18: 0.96 | P18: 6144 | Q18: =Table1[[#This Row],[MV]]-Table1[[#This Row],[Pcost]] -> 0 | R18: =Table1[[#This Row],[LG]]*100/Table1[[#This Row],[Pcost]] -> 0
A19: CEF | B19: 175 | C19: 14.49 | D19: 2574.78 | E19: 2217.25 | F19: 12.67 | G19: -0.03 | H19: 12.7 | I19: 0 | J19: 12.7 | K19: -0.11 | L19: 12.81 | M19: -0.12 | N19: 2 | O19: -0.03 | P19: -5.25 | Q19: =Table1[[#This Row],[MV]]-Table1[[#This Row],[Pcost]] -> -357.53 | R19: =Table1[[#This Row],[LG]]*100/Table1[[#This Row],[Pcost]] -> -13.88584656
A20: CHK | B20: 2500 | C20: 8.1 | D20: 16829.44 | E20: 10750 | F20: 4.3 | G20: -0.05 | H20: 4.35 | I20: -0.07 | J20: 4.42 | K20: 0.05 | L20: 4.37 | M20: 0 | N20: 2 | O20: -0.12 | P20: -300 | Q20: =Table1[[#This Row],[MV]]-Table1[[#This Row],[Pcost]] -> -6079.44 | R20: =Table1[[#This Row],[LG]]*100/Table1[[#This Row],[Pcost]] -> -36.12384013
A21: CIECX | B21: 328 | C21: 21.48 | D21: 7045.44 | E21: 7216 | F21: 22 | G21: 0 | H21: ST | N21: 2 | O21: 22 | P21: 7216 | Q21: =Table1[[#This Row],[MV]]-Table1[[#This Row],[Pcost]] -> 170.56 | R21: =Table1[[#This Row],[LG]]*100/Table1[[#This Row],[Pcost]] -> 2.420856611
A22: COP | B22: 100 | C22: 39.13 | D22: 3924.45 | E22: 5005 | F22: 50.05 | G22: 0.05 | H22: 50 | I22: -0.22 | J22: 50.22 | K22: 0.55 | L22: 49.67 | M22: -0.31 | N22: 2 | O22: -0.17 | P22: -17 | Q22: =Table1[[#This Row],[MV]]-Table1[[#This Row],[Pcost]] -> 1080.55 | R22: =Table1[[#This Row],[LG]]*100/Table1[[#This Row],[Pcost]] -> 27.53379454
A23: csco | B23: 160 | C23: 20.36 | D23: 3024.74 | E23: 5380.8 | F23: 33.63 | G23: 0.28 | H23: 33.35 | I23: -0.13 | J23: 33.48 | K23: -0.28 | L23: 33.76 | M23: 0.04 | N23: 2 | O23: 0.15 | P23: 24 | Q23: =Table1[[#This Row],[MV]]-Table1[[#This Row],[Pcost]] -> 2356.06 | R23: =Table1[[#This Row],[LG]]*100/Table1[[#This Row],[Pcost]] -> 77.89297593
A24: DIG | B24: 850 | C24: 32.37 | D24: 26511.43 | E24: 30090 | F24: 35.4 | G24: 0.12 | H24: 35.28 | I24: 0.05 | J24: 35.23 | K24: 0.28 | L24: 35.24 | M24: -0.06 | N24: 1 | O24: 0.17 | P24: 144.5 | Q24: =Table1[[#This Row],[MV]]-Table1[[#This Row],[Pcost]] -> 3578.57 | R24: =Table1[[#This Row],[LG]]*100/Table1[[#This Row],[Pcost]] -> 13.49821568
A25: DOW | B25: 25 | C25: 29.16 | D25: 738.95 | E25: 1666.25 | F25: 66.65 | G25: 0 | H25: ST | N25: 2 | O25: 66.65 | P25: 1666.25 | Q25: =Table1[[#This Row],[MV]]-Table1[[#This Row],[Pcost]] -> 927.3 | R25: =Table1[[#This Row],[LG]]*100/Table1[[#This Row],[Pcost]] -> 125.4888693
A26: DVA | B26: 80 | C26: 61.3 | D26: 4988.27 | E26: 4751.2 | F26: 59.39 | G26: 0.92 | H26: 58.47 | I26: 0.16 | J26: 58.31 | K26: -0.16 | L26: 58.47 | M26: 0.79 | N26: 2 | O26: 1.08 | P26: 86.4 | Q26: =Table1[[#This Row],[MV]]-Table1[[#This Row],[Pcost]] -> -237.07 | R26: =Table1[[#This Row],[LG]]*100/Table1[[#This Row],[Pcost]] -> -4.752549481
A27: EBR | B27: 350 | C27: 4.97 | D27: 1664 | E27: 2170 | F27: 6.2 | G27: 0.1 | H27: 6.1 | I27: -0.11 | J27: 6.21 | K27: -0.24 | L27: 6.45 | M27: 0.02 | N27: 2 | O27: -0.01 | P27: -3.5 | Q27: =Table1[[#This Row],[MV]]-Table1[[#This Row],[Pcost]] -> 506 | R27: =Table1[[#This Row],[LG]]*100/Table1[[#This Row],[Pcost]] -> 30.40865385
A28: EEM | B28: 100 | C28: 36.62 | D28: 3605.7 | E28: 4481 | F28: 44.81 | G28: 0.51 | H28: 44.3 | I28: -0.03 | J28: 44.33 | K28: -0.16 | L28: 44.49 | M28: -0.12 | N28: 2 | O28: 0.48 | P28: 48 | Q28: =Table1[[#This Row],[MV]]-Table1[[#This Row],[Pcost]] -> 875.3 | R28: =Table1[[#This Row],[LG]]*100/Table1[[#This Row],[Pcost]] -> 24.27545276
A29: EWZ | B29: 275 | C29: 42.73 | D29: 9791.87 | E29: 11464.75 | F29: 41.69 | G29: 0.72 | H29: 40.97 | I29: 0.05 | J29: 40.92 | K29: -0.76 | L29: 41.68 | M29: -0.11 | N29: 2 | O29: 0.77 | P29: 211.75 | Q29: =Table1[[#This Row],[MV]]-Table1[[#This Row],[Pcost]] -> 1672.88 | R29: =Table1[[#This Row],[LG]]*100/Table1[[#This Row],[Pcost]] -> 17.08437714
A30: FCX | B30: 625 | C30: 7.22 | D30: 4138.79 | E30: 8775 | F30: 14.04 | G30: -0.38 | H30: 14.42 | I30: 0.42 | J30: 14 | K30: 0.01 | L30: 13.99 | M30: 0.1 | N30: 2 | O30: 0.04 | P30: 25 | Q30: =Table1[[#This Row],[MV]]-Table1[[#This Row],[Pcost]] -> 4636.21 | R30: =Table1[[#This Row],[LG]]*100/Table1[[#This Row],[Pcost]] -> 112.0184885
A31: Flati | B31: 92.168 | C31: 12.48 | D31: 1275.67 | E31: 4977.07 | F31: 54 | G31: 0 | H31: ST | N31: 2 | O31: 54 | P31: 4977.072 | Q31: =Table1[[#This Row],[MV]]-Table1[[#This Row],[Pcost]] -> 3701.4 | R31: =Table1[[#This Row],[LG]]*100/Table1[[#This Row],[Pcost]] -> 290.1534096
A32: fxi | B32: 100 | C32: 40.13 | D32: 4019.5 | E32: 4404 | F32: 44.04 | G32: 0.51 | H32: 43.53 | I32: -0.37 | J32: 43.9 | K32: 0.16 | L32: 43.74 | M32: 0.35 | N32: 2 | O32: 0.14 | P32: 14 | Q32: =Table1[[#This Row],[MV]]-Table1[[#This Row],[Pcost]] -> 384.5 | R32: =Table1[[#This Row],[LG]]*100/Table1[[#This Row],[Pcost]] -> 9.565866401
A33: GE | B33: 235 | C33: 19.03 | D33: 4678.7 | E33: 5682.3 | F33: 24.18 | G33: -0.06 | H33: 24.24 | I33: -0.13 | J33: 24.37 | K33: -0.56 | L33: 24.93 | M33: -0.18 | N33: 0 | O33: -0.19 | P33: -44.65 | Q33: =Table1[[#This Row],[MV]]-Table1[[#This Row],[Pcost]] -> 1003.6 | R33: =Table1[[#This Row],[LG]]*100/Table1[[#This Row],[Pcost]] -> 21.45040289
A34: GM | B34: 75 | C34: 35.7 | D34: 2682.08 | E34: 3028.5 | F34: 40.38 | G34: -0.2 | H34: 40.58 | I34: 0 | J34: 40.58 | K34: 0.32 | L34: 40.26 | M34: -0.04 | N34: 2 | O34: -0.2 | P34: -15 | Q34: =Table1[[#This Row],[MV]]-Table1[[#This Row],[Pcost]] -> 346.42 | R34: =Table1[[#This Row],[LG]]*100/Table1[[#This Row],[Pcost]] -> 12.91609497
A35: HPE | B35: 133 | C35: 0.5 | D35: 73.5 | E35: 1956.43 | F35: 14.71 | G35: 0.14 | H35: 14.57 | I35: -0.28 | J35: 14.85 | K35: -0.04 | L35: 14.89 | M35: 0.19 | N35: 2 | O35: -0.14 | P35: -18.62 | Q35: =Table1[[#This Row],[MV]]-Table1[[#This Row],[Pcost]] -> 1882.93 | R35: =Table1[[#This Row],[LG]]*100/Table1[[#This Row],[Pcost]] -> 2561.809524
A36: HPQ | B36: 133 | C36: 34 | D36: 4402.75 | E36: 2654.68 | F36: 19.96 | G36: -0.01 | H36: 19.97 | I36: 0.1 | J36: 19.87 | K36: -0.01 | L36: 19.88 | M36: 0.03 | N36: =IF(AND(G36 < 0, I36 < 0, K36 < 0),0, IF(AND(G36 > 0, I36 >0, K36 > 0),1,2)) -> 2 | O36: =F36-J36 -> 0.09 | P36: =O36*B36 -> 11.97 | Q36: =Table1[[#This Row],[MV]]-Table1[[#This Row],[Pcost]] -> -1748.07 | R36: =Table1[[#This Row],[LG]]*100/Table1[[#This Row],[Pcost]] -> -39.70404861
A37: IIF | B37: 125 | C37: 23.51 | D37: 3008.78 | E37: 4280 | F37: 34.24 | G37: 0.13 | H37: 34.11 | I37: -0.14 | J37: 34.25 | K37: -0.01 | L37: 34.26 | M37: -0.09 | N37: 2 | O37: -0.01 | P37: -1.25 | Q37: =Table1[[#This Row],[MV]]-Table1[[#This Row],[Pcost]] -> 1271.22 | R37: =Table1[[#This Row],[LG]]*100/Table1[[#This Row],[Pcost]] -> 42.25034732
A38: INTC | B38: 75 | C38: 19.5 | D38: 1479.97 | E38: 2856 | F38: 38.08 | G38: 0.25 | H38: 37.83 | I38: 0.29 | J38: 37.54 | K38: 0.07 | L38: 37.47 | M38: 0.31 | N38: 1 | O38: 0.54 | P38: 40.5 | Q38: =Table1[[#This Row],[MV]]-Table1[[#This Row],[Pcost]] -> 1376.03 | R38: =Table1[[#This Row],[LG]]*100/Table1[[#This Row],[Pcost]] -> 92.97688467
A39: IRAa | B39: 14000 | C39: 1 | D39: 14000 | E39: 14000 | F39: 1 | G39: 0 | H39: ST | N39: 2 | O39: 1 | P39: 14000 | Q39: =Table1[[#This Row],[MV]]-Table1[[#This Row],[Pcost]] -> 0 | R39: =Table1[[#This Row],[LG]]*100/Table1[[#This Row],[Pcost]] -> 0
A40: IRAn | B40: 13000 | C40: 1 | D40: 13000 | E40: 13000 | F40: 1 | G40: 0 | H40: ST | N40: 2 | O40: 1 | P40: 13000 | Q40: =Table1[[#This Row],[MV]]-Table1[[#This Row],[Pcost]] -> 0 | R40: =Table1[[#This Row],[LG]]*100/Table1[[#This Row],[Pcost]] -> 0
A41: JAY | B41: 17000 | C41: 1 | D41: 17000 | E41: 17000 | F41: 1 | G41: 0 | H41: ST | N41: 2 | O41: 1 | P41: 17000 | Q41: =Table1[[#This Row],[MV]]-Table1[[#This Row],[Pcost]] -> 0 | R41: =Table1[[#This Row],[LG]]*100/Table1[[#This Row],[Pcost]] -> 0
A42: KMI | B42: 400 | C42: 18.33 | D42: 7405.99 | E42: 7672 | F42: 19.18 | G42: -0.13 | H42: 19.31 | I42: -0.02 | J42: 19.33 | K42: -0.19 | L42: 19.52 | M42: -0.17 | N42: 0 | O42: -0.15 | P42: -60 | Q42: =Table1[[#This Row],[MV]]-Table1[[#This Row],[Pcost]] -> 266.01 | R42: =Table1[[#This Row],[LG]]*100/Table1[[#This Row],[Pcost]] -> 3.591822295
A43: LBTYK | B43: 50 | C43: 28.54 | D43: 1431.95 | E43: 1635 | F43: 32.7 | G43: 0.65 | H43: 32.05 | I43: -0.82 | J43: 32.87 | K43: 0.2 | L43: 32.67 | M43: -0.2 | N43: 2 | O43: -0.17 | P43: -8.5 | Q43: =Table1[[#This Row],[MV]]-Table1[[#This Row],[Pcost]] -> 203.05 | R43: =Table1[[#This Row],[LG]]*100/Table1[[#This Row],[Pcost]] -> 14.17996438
A44: LPX | B44: 75 | C44: 12.91 | D44: 865.5 | E44: 2031 | F44: 27.08 | G44: -1.49 | H44: 28.57 | I44: 0.02 | J44: 28.55 | K44: -0.59 | L44: 29.14 | M44: 0.06 | N44: 2 | O44: -1.47 | P44: -110.25 | Q44: =Table1[[#This Row],[MV]]-Table1[[#This Row],[Pcost]] -> 1165.5 | R44: =Table1[[#This Row],[LG]]*100/Table1[[#This Row],[Pcost]] -> 134.6620451
A45: luv | B45: 50 | C45: 58.27 | D45: 2918.35 | E45: 2799 | F45: 55.98 | G45: -0.19 | H45: 56.17 | I45: 0.29 | J45: 55.88 | K45: 0.16 | L45: 55.72 | M45: 0.6 | N45: 2 | O45: 0.1 | P45: 5 | Q45: =Table1[[#This Row],[MV]]-Table1[[#This Row],[Pcost]] -> -119.35 | R45: =Table1[[#This Row],[LG]]*100/Table1[[#This Row],[Pcost]] -> -4.089639694
A46: MLNK | B46: 80 | C46: 3.48 | D46: 285.32 | E46: 150.4 | F46: 1.88 | G46: -0.05 | H46: 1.93 | I46: 0.07 | J46: 1.86 | K46: 0.07 | L46: 1.79 | M46: 0.03 | N46: 2 | O46: 0.02 | P46: 1.6 | Q46: =Table1[[#This Row],[MV]]-Table1[[#This Row],[Pcost]] -> -134.92 | R46: =Table1[[#This Row],[LG]]*100/Table1[[#This Row],[Pcost]] -> -47.28725641
A47: MSFT | B47: 100 | C47: 45.67 | D47: 4579 | E47: 7449 | F47: 74.49 | G47: 0.62 | H47: 73.87 | I47: 0.02 | J47: 73.85 | K47: 0.59 | L47: 73.26 | M47: 0 | N47: 1 | O47: 0.64 | P47: 64 | Q47: =Table1[[#This Row],[MV]]-Table1[[#This Row],[Pcost]] -> 2870 | R47: =Table1[[#This Row],[LG]]*100/Table1[[#This Row],[Pcost]] -> 62.67744049
A48: MSI | B48: 10 | C48: 20 | D48: 210.95 | E48: 848.7 | F48: 84.87 | G48: 1.18 | H48: 83.69 | I48: -0.41 | J48: 84.1 | K48: 1.08 | L48: 83.02 | M48: -0.48 | N48: 2 | O48: 0.77 | P48: 7.7 | Q48: =Table1[[#This Row],[MV]]-Table1[[#This Row],[Pcost]] -> 637.75 | R48: =Table1[[#This Row],[LG]]*100/Table1[[#This Row],[Pcost]] -> 302.3228253
A49: NOV | B49: 250 | C49: 31.94 | D49: 7994.98 | E49: 8932.5 | F49: 35.73 | G49: 0.2 | H49: 35.53 | I49: -0.61 | J49: 36.14 | K49: -0.16 | L49: 36.3 | M49: 0.44 | N49: 2 | O49: -0.41 | P49: -102.5 | Q49: =Table1[[#This Row],[MV]]-Table1[[#This Row],[Pcost]] -> 937.52 | R49: =Table1[[#This Row],[LG]]*100/Table1[[#This Row],[Pcost]] -> 11.72635829
A50: PBR | B50: 1200 | C50: 6.68 | D50: 7423.38 | E50: 12048 | F50: 10.04 | G50: 0.02 | H50: 10.02 | I50: 0.02 | J50: 10 | K50: -0.22 | L50: 10.22 | M50: -0.12 | N50: 2 | O50: 0.04 | P50: 48 | Q50: =Table1[[#This Row],[MV]]-Table1[[#This Row],[Pcost]] -> 4624.62 | R50: =Table1[[#This Row],[LG]]*100/Table1[[#This Row],[Pcost]] -> 62.29803674
A51: PSX | B51: 50 | C51: 81.69 | D51: 4089.55 | E51: 4580.5 | F51: 91.61 | G51: -0.18 | H51: 91.79 | I51: -0.01 | J51: 91.8 | K51: 0.45 | L51: 91.35 | M51: 0.34 | N51: 2 | O51: -0.19 | P51: -9.5 | Q51: =Table1[[#This Row],[MV]]-Table1[[#This Row],[Pcost]] -> 490.95 | R51: =Table1[[#This Row],[LG]]*100/Table1[[#This Row],[Pcost]] -> 12.00498832
A52: rrspA | B52: 9100 | C52: 0.96 | D52: 8736 | E52: 8736 | F52: 0.96 | G52: 0 | H52: ST | N52: 2 | O52: 0.96 | P52: 8736 | Q52: =Table1[[#This Row],[MV]]-Table1[[#This Row],[Pcost]] -> 0 | R52: =Table1[[#This Row],[LG]]*100/Table1[[#This Row],[Pcost]] -> 0
A53: rrspn | B53: 61300 | C53: 0.96 | D53: 58848 | E53: 58848 | F53: 0.96 | G53: 0 | H53: ST | N53: 2 | O53: 0.96 | P53: 58848 | Q53: =Table1[[#This Row],[MV]]-Table1[[#This Row],[Pcost]] -> 0 | R53: =Table1[[#This Row],[LG]]*100/Table1[[#This Row],[Pcost]] -> 0
A54: RTMNT | B54: 129000 | C54: 1 | D54: 129000 | E54: 129000 | F54: 1 | G54: 0 | H54: ST | N54: 2 | O54: 1 | P54: 129000 | Q54: =Table1[[#This Row],[MV]]-Table1[[#This Row],[Pcost]] -> 0 | R54: =Table1[[#This Row],[LG]]*100/Table1[[#This Row],[Pcost]] -> 0
A55: saving | B55: 185000 | C55: 1 | D55: 185000 | E55: 185000 | F55: 1 | G55: 0 | H55: ST | N55: 2 | O55: 1 | P55: 185000 | Q55: =Table1[[#This Row],[MV]]-Table1[[#This Row],[Pcost]] -> 0 | R55: =Table1[[#This Row],[LG]]*100/Table1[[#This Row],[Pcost]] -> 0
A56: SPY | B56: 27 | C56: 241.53 | D56: 6526.16 | E56: 6783.21 | F56: 251.23 | G56: 0.88 | H56: 250.35 | I56: 0.3 | J56: 250.05 | K56: 0.97 | L56: 249.08 | M56: 0.15 | N56: 1 | O56: 1.18 | P56: 31.86 | Q56: =Table1[[#This Row],[MV]]-Table1[[#This Row],[Pcost]] -> 257.05 | R56: =Table1[[#This Row],[LG]]*100/Table1[[#This Row],[Pcost]] -> 3.938763377
A57: Stock | B57: 242000 | C57: 1 | D57: 242000 | E57: 242000 | F57: 1 | G57: 0 | H57: ST | N57: 2 | O57: 1 | P57: 242000 | Q57: =Table1[[#This Row],[MV]]-Table1[[#This Row],[Pcost]] -> 0 | R57: =Table1[[#This Row],[LG]]*100/Table1[[#This Row],[Pcost]] -> 0
A58: STOR | B58: 100 | C58: 24.26 | D58: 2436.24 | E58: 2487 | F58: 24.87 | G58: 0.07 | H58: 24.8 | I58: 0.03 | J58: 25.08 | K58: -0.47 | L58: 25.55 | M58: 0.09 | N58: 2 | O58: -0.21 | P58: -21 | Q58: =Table1[[#This Row],[MV]]-Table1[[#This Row],[Pcost]] -> 50.76 | R58: =Table1[[#This Row],[LG]]*100/Table1[[#This Row],[Pcost]] -> 2.083538568
A59: SU | B59: 200 | C59: 24.81 | D59: 5097.38 | E59: 7006 | F59: 35.03 | G59: 0.22 | H59: 34.81 | I59: 0.08 | J59: 34.73 | K59: 0.2 | L59: 34.53 | M59: -0.13 | N59: 1 | O59: 0.3 | P59: 60 | Q59: =Table1[[#This Row],[MV]]-Table1[[#This Row],[Pcost]] -> 1908.62 | R59: =Table1[[#This Row],[LG]]*100/Table1[[#This Row],[Pcost]] -> 37.44315707
A60: T | B60: 109 | C60: 38.25 | D60: 4267.5 | E60: 4269.53 | F60: 39.17 | G60: 0.13 | H60: 39.04 | I60: 0.27 | J60: 38.77 | K60: 0.05 | L60: 38.72 | M60: -0.4 | N60: 1 | O60: 0.4 | P60: 43.6 | Q60: =Table1[[#This Row],[MV]]-Table1[[#This Row],[Pcost]] -> 2.03 | R60: =Table1[[#This Row],[LG]]*100/Table1[[#This Row],[Pcost]] -> 0.04756883421
A61: TINA | B61: 10950 | C61: 1 | D61: 10950 | E61: 10950 | F61: 1 | G61: 0 | H61: ST | N61: 2 | O61: 1 | P61: 10950 | Q61: =Table1[[#This Row],[MV]]-Table1[[#This Row],[Pcost]] -> 0 | R61: =Table1[[#This Row],[LG]]*100/Table1[[#This Row],[Pcost]] -> 0
A62: UCO | B62: 100 | C62: 15.69 | D62: 1575.92 | E62: 1782 | F62: 17.82 | G62: -0.01 | H62: 17.83 | I62: -0.33 | J62: 18.16 | K62: 0.11 | L62: 18.05 | M62: -0.23 | N62: 2 | O62: -0.34 | P62: -34 | Q62: =Table1[[#This Row],[MV]]-Table1[[#This Row],[Pcost]] -> 206.08 | R62: =Table1[[#This Row],[LG]]*100/Table1[[#This Row],[Pcost]] -> 13.07680593
A63: USG | B63: 175 | C63: 26.37 | D63: 4662.2 | E63: 5713.75 | F63: 32.65 | G63: -0.04 | H63: 32.69 | I63: 0.33 | J63: 32.36 | K63: 0.39 | L63: 31.97 | M63: 0.36 | N63: 2 | O63: 0.29 | P63: 50.75 | Q63: =Table1[[#This Row],[MV]]-Table1[[#This Row],[Pcost]] -> 1051.55 | R63: =Table1[[#This Row],[LG]]*100/Table1[[#This Row],[Pcost]] -> 22.55480245
A64: USO | B64: 710 | C64: 14.25 | D64: 9180.51 | E64: 7405.3 | F64: 10.43 | G64: 0 | H64: 10.43 | I64: -0.09 | J64: 10.52 | K64: 0.03 | L64: 10.49 | M64: -0.06 | N64: 2 | O64: -0.09 | P64: -63.9 | Q64: =Table1[[#This Row],[MV]]-Table1[[#This Row],[Pcost]] -> -1775.21 | R64: =Table1[[#This Row],[LG]]*100/Table1[[#This Row],[Pcost]] -> -19.3367253
A65: VTI | B65: 228 | C65: 127.52 | D65: 29083.7 | E65: 29530.56 | F65: 129.52 | G65: 0.42 | H65: 129.1 | I65: 0.21 | J65: 128.89 | K65: 0.7 | L65: 128.19 | M65: 0.03 | N65: 1 | O65: 0.63 | P65: 143.64 | Q65: =Table1[[#This Row],[MV]]-Table1[[#This Row],[Pcost]] -> 446.86 | R65: =Table1[[#This Row],[LG]]*100/Table1[[#This Row],[Pcost]] -> 1.536462004
A66: WFC | B66: 250 | C66: 48.73 | D66: 12207.63 | E66: 13787.5 | F66: 55.15 | G66: 0.9 | H66: 54.25 | I66: 0.04 | J66: 54.21 | K66: 0.41 | L66: 53.8 | M66: -0.23 | N66: 1 | O66: 0.94 | P66: 235 | Q66: =Table1[[#This Row],[MV]]-Table1[[#This Row],[Pcost]] -> 1579.87 | R66: =Table1[[#This Row],[LG]]*100/Table1[[#This Row],[Pcost]] -> 12.94166026
A67: WIT | B67: 1416 | C67: 6 | D67: 8272.42 | E67: 8042.88 | F67: 5.68 | G67: 0.04 | H67: 5.64 | I67: 0.03 | J67: 5.61 | K67: 0.01 | L67: 5.6 | M67: -0.02 | N67: 1 | O67: 0.07 | P67: 99.12 | Q67: =Table1[[#This Row],[MV]]-Table1[[#This Row],[Pcost]] -> -229.54 | R67: =Table1[[#This Row],[LG]]*100/Table1[[#This Row],[Pcost]] -> -2.774762403
N68: =IF(AND(G68 < 0, I68 < 0, K68 < 0),0, IF(AND(G68 > 0, I68 >0, K68 > 0),1,2)) -> 2 | O68: =F68-J68 -> 0 | P68: =O68*B68 -> 0 | Q68: =Table1[[#This Row],[MV]]-Table1[[#This Row],[Pcost]] -> 0 | R68: =Table1[[#This Row],[LG]]*100/Table1[[#This Row],[Pcost]] -> 
N69: 2 | O69: 0 | P69: 0 | Q69: =Table1[[#This Row],[MV]]-Table1[[#This Row],[Pcost]] -> 0 | R69: =Table1[[#This Row],[LG]]*100/Table1[[#This Row],[Pcost]] -> 
N70: 2 | O70: 0 | P70: 0 | Q70: =Table1[[#This Row],[MV]]-Table1[[#This Row],[Pcost]] -> 0 | R70: =Table1[[#This Row],[LG]]*100/Table1[[#This Row],[Pcost]] -> 
N71: 2 | O71: 0 | P71: 0 | Q71: =Table1[[#This Row],[MV]]-Table1[[#This Row],[Pcost]] -> 0 | R71: =Table1[[#This Row],[LG]]*100/Table1[[#This Row],[Pcost]] -> 
N72: 2 | O72: 0 | P72: 0 | Q72: =Table1[[#This Row],[MV]]-Table1[[#This Row],[Pcost]] -> 0 | R72: =Table1[[#This Row],[LG]]*100/Table1[[#This Row],[Pcost]] -> 
N73: 2 | O73: 0 | P73: 0 | Q73: =Table1[[#This Row],[MV]]-Table1[[#This Row],[Pcost]] -> 0 | R73: =Table1[[#This Row],[LG]]*100/Table1[[#This Row],[Pcost]] -> 
N74: 2 | O74: 0 | P74: 0 | Q74: =Table1[[#This Row],[MV]]-Table1[[#This Row],[Pcost]] -> 0 | R74: =Table1[[#This Row],[LG]]*100/Table1[[#This Row],[Pcost]] -> 

Sheet Sheet2
C2: 100 | F2: 100
B3: 1.25 | C3: =C2*B3 -> 125 | E3: 1.5 | F3: =F2*E3 -> 150
A4: 20 | B4: 0.8 | C4: =C3*B4 -> 100 | D4: 40 | E4: 0.6 | F4: =F3*E4 -> 90
F5: 135
F6: Between 4 and 11
B7: 2012-11-01 | C7: 1878339 | D7: 3765
B8: 2013-04-30 | C8: 2000942 | D8: 1078 | F8: =C8-C7 -> 122603
B9: 2013-11-02 | C9: 2032571 | D9: -1032 | F9: =C9-C8 -> 31629 | G9: =C9-C7 -> 154232
B10: 2014-04-01 | C10: 2070873 | D10: 1764 | F10: =C10-C9 -> 38302 | G10: =C10-C8 -> 69931
B11: 2014-11-04 | C11: 2173626 | D11: -1345 | F11: 102753 | G11: =C11-C9 -> 141055
B12: 2015-04-01 | C12: 2188150 | D12: 1110 | F12: 14524 | G12: 117277
B13: 2015-11-02 | C13: 2228693 | D13: -365 | F13: 40543 | G13: 55067
B14: 2016-04-01 | C14: 2265587 | D14: -2203 | F14: 36894 | G14: 77437
B15: 2016-11-02 | C15: 2366197 | D15: -9590 | F15: 100610 | G15: 137504
B16: 2017-04-04 | C16: 2453430 | D16: 2285 | F16: 87233 | G16: 187843
F18: =F8+F10+F12+F14+F16 -> 299556 | G18: =F9+F11+F13+F15 -> 275535
